fUSD/lending_fUSD_20250716
["ID","MTS","AMOUNT","RATE_DAILY","PERIOD"]
[372605397,1752701462990,-189.86695,0.00019883,2]
[372605398,1752701463000,-151.0,0.00019883,2]
[372605399,1752701463010,-151.0,0.00019883,2]
[372605400,1752701463020,-182.850985,0.00019883,2]
[372605401,1752701463030,-182.850985,0.00019883,2]
[372605402,1752701463041,-227.597789,0.00019883,2]
[372605403,1752701463051,-151.0,0.00019883,2]
[372605404,1752701463061,-227.597789,0.00019883,2]
[372605405,1752701463437,-151.0,0.00019883,2]
[372605406,1752701463460,-151.0,0.00019883,2]
[372605407,1752701463471,-164.855113,0.00019883,2]
[372605408,1752701463481,-193.192268,0.00019883,2]
[372605409,1752701463491,-193.192268,0.00019883,2]
[372605410,1752701463501,-751.931418,0.00019883,2]
[372605411,1752701463511,-751.931418,0.00019883,2]
[372605412,1752701463521,-151.0,0.00019883,2]
[372605413,1752701463531,-151.0,0.00019883,2]
[372605414,1752701463543,-175.635195,0.00019883,2]
[372605415,1752701463553,-151.0,0.00019883,2]
[372605416,1752701463563,-151.0,0.00019883,2]
[372605417,1752701463573,-175.635195,0.00019883,2]
[372605418,1752701463583,-151.0,0.00019883,2]
[372605419,1752701463593,-151.0,0.00019883,2]
[372605420,1752701463603,-151.0,0.00019883,2]
[372605421,1752701463612,-151.0,0.00019883,2]
[372605422,1752701463622,-151.0,0.00019893,2]
[372605423,1752701463632,-264.897891,0.00019893,2]
[372605424,1752701463642,-247.563036,0.00019893,2]
[372605425,1752701463652,-165.255148,0.00019893,2]
[372605426,1752701463662,-151.0,0.000199,2]
[372605427,1752701463672,-653.039894,0.000199,2]
[372605428,1752701463681,-653.039894,0.000199,2]
[372605429,1752701463691,-700.0,0.000199,7]
[372605430,1752701463701,-4861.001323,0.000199,2]
[372605431,1752701463712,-1068.28984643,0.000199,2]
[372605432,1752701463722,-222.53242737,0.000199,3]
[372605433,1752701463731,-7393.8708363,0.00019907,2]
[372605434,1752701463741,-151.0,0.00019908,2]
[372605435,1752701463751,-211.658005,0.00019908,2]
[372605436,1752701463761,-151.0,0.00019908,2]
[372605437,1752701463771,-151.0,0.00019908,2]
[372605438,1752701463780,-151.0,0.00019908,2]
[372605439,1752701463790,-151.0,0.00019908,2]
[372605440,1752701463801,-151.0,0.00019908,2]
[372605441,1752701463814,-214.118252,0.00019908,2]
[372605442,1752701463824,-151.0,0.00019908,2]
[372605443,1752701463835,-214.118252,0.00019908,2]
[372605444,1752701463846,-151.0,0.00019908,2]
[372605445,1752701463856,-389.392676,0.00019908,2]
[372605446,1752701463866,-389.392676,0.00019908,2]
[372605447,1752701463875,-151.0,0.00019908,2]
[372605448,1752701463887,-151.0,0.00019908,2]
[372605449,1752701463898,-151.0,0.00019908,2]
[372605450,1752701463908,-192.644676,0.00019908,2]
[372605451,1752701463918,-341.898295,0.00019908,2]
[372605452,1752701463928,-227.597789,0.00019908,2]
[372605453,1752701463938,-151.0,0.00019908,2]
[372605454,1752701463948,-341.898295,0.00019908,2]
[372605455,1752701463959,-227.597789,0.00019908,2]
[372605456,1752701463968,-331.548012,0.00019908,2]
[372605457,1752701463978,-331.548012,0.00019908,2]
[372605458,1752701463989,-331.548012,0.00019908,2]
[372605459,1752701463998,-331.548012,0.00019908,2]
[372605460,1752701464008,-151.0,0.00019908,2]
[372605461,1752701464019,-151.0,0.00019908,2]
[372605462,1752701464029,-285.72679,0.00019908,2]
[372605463,1752701464039,-193.192268,0.00019908,2]
[372605464,1752701464050,-193.192268,0.00019908,2]
[372605465,1752701464060,-323.717678,0.00019908,2]
[372605466,1752701464071,-323.717678,0.00019908,2]
[372605467,1752701464082,-323.717678,0.00019908,2]
[372605468,1752701464094,-323.717678,0.00019908,2]
[372605469,1752701464104,-751.931418,0.00019908,2]
[372605470,1752701464115,-751.931418,0.00019908,2]
[372605471,1752701464126,-151.0,0.00019908,2]
[372605472,1752701464136,-194.965474,0.00019908,2]
[372605473,1752701464147,-175.635195,0.00019908,2]
[372605474,1752701464158,-151.0,0.00019908,2]
[372605475,1752701464168,-266.399794,0.00019908,2]
[372605476,1752701464178,-175.635195,0.00019908,2]
[372605477,1752701464190,-151.0,0.00019908,2]
[372605478,1752701464200,-2620.926489,0.00019908,2]
[372605479,1752701464211,-2620.926489,0.00019908,2]
[372605480,1752701464221,-151.0,0.00019908,2]
[372605481,1752701464231,-151.0,0.00019908,2]
[372605482,1752701464241,-151.0,0.00019908,2]
[372605483,1752701464251,-151.0,0.00019908,2]
[372605484,1752701464261,-1304.536516,0.00019908,2]
[372605485,1752701464271,-151.0,0.00019908,2]
[372605486,1752701464281,-2886.69,0.00019908,2]
[372605487,1752701464293,-1510.17,0.00019908,2]
[372605488,1752701464303,-2559.67,0.00019908,2]
[372605489,1752701464314,-804.88,0.00019908,2]
[372605490,1752701464325,-804.88,0.00019908,2]
[372605491,1752701464334,-1477.57,0.00019908,2]
[372605492,1752701464344,-460.0,0.00019908,2]
[372605493,1752701464355,-740.88,0.00019908,2]
[372605494,1752701464365,-460.0,0.00019908,2]
[372605495,1752701464374,-630.77,0.00019908,2]
[372605496,1752701464385,-1361.13,0.00019908,2]
[372605497,1752701464395,-1393.11,0.00019908,2]
[372605498,1752701464405,-1268.51,0.00019908,2]
[372605499,1752701464414,-859.3,0.00019908,2]
[372605500,1752701464424,-151.0,0.00019908,2]
[372605501,1752701464434,-517.35,0.00019908,2]
[372605502,1752701464445,-205.566422,0.00019908,2]
[372605503,1752701464454,-522.57,0.00019908,2]
[372605504,1752701464464,-500.0,0.00019908,2]
[372605505,1752701464474,-500.0,0.00019908,2]
[372605506,1752701464485,-855.64,0.00019908,2]
[372605507,1752701464496,-951.82,0.00019908,2]
[372605508,1752701464505,-681.14,0.00019908,2]
[372605509,1752701464515,-1377.23,0.00019908,2]
[372605510,1752701464524,-496.24,0.00019908,2]
[372605511,1752701464533,-500.0,0.00019908,2]
[372605512,1752701464543,-500.0,0.00019908,2]
[372605513,1752701464552,-1496.6,0.00019908,2]
[372605514,1752701464562,-643.78,0.00019908,2]
[372605515,1752701464572,-460.0,0.00019908,2]
[372605516,1752701464582,-460.0,0.00019908,2]
[372605517,1752701464592,-498.56,0.00019908,2]
[372605518,1752701464604,-931.06,0.00019908,2]
[372605519,1752701464614,-151.0,0.00019908,2]
[372605520,1752701464624,-460.0,0.00019908,2]
[372605521,1752701464633,-504.98,0.00019908,2]
[372605522,1752701464644,-1316.35,0.00019908,2]
[372605523,1752701464656,-460.0,0.00019908,2]
[372605524,1752701464666,-460.0,0.00019908,2]
[372605525,1752701464676,-460.0,0.00019908,2]
[372605526,1752701464686,-500.0,0.00019908,2]
[372605527,1752701464695,-500.0,0.00019908,2]
[372605528,1752701464705,-500.0,0.00019908,2]
[372605529,1752701464714,-1143.16,0.00019908,2]
[372605530,1752701464724,-1143.16,0.00019908,2]
[372605531,1752701464733,-500.0,0.00019908,2]
[372605532,1752701464743,-500.0,0.00019908,2]
[372605533,1752701464752,-2192.0,0.00019908,2]
[372605534,1752701464762,-2192.0,0.00019908,2]
[372605535,1752701464772,-150.0,0.00019908,2]
[372605536,1752701464782,-277.919463,0.00019909,2]
[372605537,1752701464793,-277.919463,0.00019909,2]
[372605538,1752701464806,-151.0,0.00019909,2]
[372605539,1752701464815,-151.0,0.00019909,2]
[372605540,1752701464825,-151.0,0.00019909,2]
[372605541,1752701464835,-151.0,0.00019909,2]
[372605542,1752701464845,-151.0,0.00019909,2]
[372605543,1752701464855,-151.0,0.00019909,2]
[372605544,1752701464864,-151.0,0.00019909,2]
[372605545,1752701464873,-214.118252,0.00019909,2]
[372605546,1752701464886,-151.0,0.00019909,2]
[372605547,1752701464896,-214.118252,0.00019909,2]
[372605548,1752701464906,-151.0,0.00019909,2]
[372605549,1752701464915,-151.0,0.00019909,2]
[372605550,1752701464924,-653.039894,0.00019909,2]
[372605551,1752701464934,-653.039894,0.00019909,2]
[372605552,1752701464943,-653.039894,0.00019909,2]
[372605553,1752701464952,-653.039894,0.00019909,2]
[372605554,1752701464963,-389.392676,0.00019909,2]
[372605555,1752701464973,-389.392676,0.00019909,2]
[372605556,1752701464983,-151.0,0.00019909,2]
[372605557,1752701464993,-151.0,0.00019909,2]
[372605558,1752701465002,-151.0,0.00019909,2]
[372605559,1752701465012,-153.944638,0.00019909,2]
[372605560,1752701465021,-151.0,0.00019909,2]
[372605561,1752701465031,-151.0,0.00019909,2]
[372605562,1752701465040,-151.0,0.00019909,2]
[372605563,1752701465051,-151.0,0.00019909,2]
[372605564,1752701465061,-151.0,0.00019909,2]
[372605565,1752701465071,-151.0,0.00019909,2]
[372605566,1752701465080,-151.0,0.00019909,2]
[372605567,1752701465091,-151.0,0.00019909,2]
[372605568,1752701465102,-151.0,0.00019909,2]
[372605569,1752701465112,-151.0,0.00019909,2]
[372605570,1752701465121,-151.0,0.00019909,2]
[372605571,1752701465131,-151.0,0.00019909,2]
[372605572,1752701465141,-278.664972,0.00019909,2]
[372605573,1752701465152,-278.664972,0.00019909,2]
[372605574,1752701465162,-151.0,0.00019909,2]
[372605575,1752701465172,-151.0,0.00019909,2]
[372605576,1752701465181,-193.943554,0.00019909,2]
[372605577,1752701465191,-151.0,0.00019909,2]
[372605578,1752701465201,-182.850985,0.00019909,2]
[372605579,1752701465210,-182.850985,0.00019909,2]
[372605580,1752701465220,-182.850985,0.00019909,2]
[372605581,1752701465229,-182.850985,0.00019909,2]
[372605582,1752701465238,-341.898295,0.00019909,2]
[372605583,1752701465247,-341.898295,0.00019909,2]
[372605584,1752701465257,-227.597789,0.00019909,2]
[372605585,1752701465266,-341.898295,0.00019909,2]
[372605586,1752701465277,-341.898295,0.00019909,2]
[372605587,1752701465287,-227.597789,0.00019909,2]
[372605588,1752701465297,-331.548012,0.00019909,2]
[372605589,1752701465307,-331.548012,0.00019909,2]
[372605590,1752701465317,-151.0,0.00019909,2]
[372605591,1752701465326,-151.0,0.00019909,2]
[372605592,1752701465335,-151.0,0.00019909,2]
[372605593,1752701465345,-193.192268,0.00019909,2]
[372605594,1752701465354,-193.192268,0.00019909,2]
[372605595,1752701465364,-323.717678,0.00019909,2]
[372605596,1752701465374,-460.0,0.00019909,2]
[372605597,1752701465385,-323.717678,0.00019909,2]
[372605598,1752701465395,-460.0,0.00019909,2]
[372605599,1752701465405,-460.0,0.00019909,2]
[372605600,1752701465415,-461.81847031,0.00019909,2]
[372605601,1752701465425,-460.0,0.00019909,2]
[372605602,1752701465435,-460.0,0.00019909,2]
[372605603,1752701465445,-460.0,0.00019909,2]
[372605604,1752701465455,-751.931418,0.00019909,2]
[372605605,1752701465464,-751.931418,0.00019909,2]
[372605606,1752701465474,-460.0,0.00019909,2]
[372605607,1752701465484,-801.68,0.00019909,2]
[372605608,1752701465494,-151.0,0.00019909,2]
[372605609,1752701465504,-460.0,0.00019909,2]
[372605610,1752701465514,-460.0,0.00019909,2]
[372605611,1752701465523,-460.0,0.00019909,2]
[372605612,1752701465533,-460.0,0.00019909,2]
[372605613,1752701465544,-175.635195,0.00019909,2]
[372605614,1752701465555,-489.23,0.00019909,2]
[372605615,1752701465565,-151.0,0.00019909,2]
[372605616,1752701465575,-175.635195,0.00019909,2]
[372605617,1752701465585,-460.0,0.00019909,2]
[372605618,1752701465595,-460.0,0.00019909,2]
[372605619,1752701465605,-176.09,0.00019909,2]
[372605620,1752701465615,-890.12,0.00019909,2]
[372605621,1752701465625,-151.0,0.00019909,2]
[372605622,1752701465634,-460.0,0.00019909,2]
[372605623,1752701465644,-460.0,0.00019909,2]
[372605624,1752701465658,-2620.926489,0.00019909,2]
[372605625,1752701465669,-1519.52,0.00019909,2]
[372605626,1752701465680,-2620.926489,0.00019909,2]
[372605627,1752701465690,-154.517997,0.00019909,2]
[372605628,1752701465702,-460.0,0.00019909,2]
[372605629,1752701465713,-460.0,0.00019909,2]
[372605630,1752701465724,-151.0,0.00019909,2]
[372605631,1752701465734,-460.0,0.00019909,2]
[372605632,1752701465745,-460.0,0.00019909,2]
[372605633,1752701465756,-460.0,0.00019909,2]
[372605634,1752701465768,-460.0,0.00019909,2]
[372605635,1752701465779,-490.0,0.00019909,2]
[372605636,1752701465791,-460.0,0.00019909,2]
[372605637,1752701465805,-460.0,0.00019909,2]
[372605638,1752701465820,-151.0,0.00019909,2]
[372605639,1752701465832,-151.0,0.00019909,2]
[372605640,1752701465843,-460.0,0.00019909,2]
[372605641,1752701465855,-460.0,0.00019909,2]
[372605642,1752701465866,-1304.536516,0.00019909,2]
[372605643,1752701465877,-460.0,0.00019909,2]
[372605644,1752701465888,-460.0,0.00019909,2]
[372605645,1752701465900,-460.0,0.00019909,2]
[372605646,1752701465911,-460.0,0.00019909,2]
[372605647,1752701465921,-487.77,0.00019909,2]
[372605648,1752701466035,-151.0,0.00019909,2]
[372605649,1752701466045,-460.0,0.00019909,2]
[372605650,1752701466055,-1312.875295,0.00019909,2]
[372605651,1752701466064,-1312.875295,0.00019909,2]
[372605652,1752701466074,-460.0,0.00019909,2]
[372605653,1752701466083,-460.0,0.00019909,2]
[372605654,1752701466093,-460.0,0.00019909,2]
[372605655,1752701466102,-460.0,0.00019909,2]
[372605656,1752701466111,-1155.68,0.00019909,2]
[372605657,1752701466121,-460.0,0.00019909,2]
[372605658,1752701466131,-212.464985,0.00019909,2]
[372605659,1752701466140,-212.464985,0.00019909,2]
[372605660,1752701466149,-151.0,0.00019909,2]
[372605661,1752701466159,-327.879735,0.00019909,2]
[372605662,1752701466169,-327.879735,0.00019909,2]
[372605663,1752701466178,-151.0,0.00019909,2]
[372605664,1752701466187,-151.0,0.00019909,2]
[372605665,1752701466196,-151.0,0.00019909,2]
[372605666,1752701466205,-151.0,0.00019909,2]
[372605667,1752701466215,-779.72967,0.00019909,2]
[372605668,1752701466224,-779.72967,0.00019909,2]
[372605669,1752701466233,-151.0,0.00019909,2]
[372605670,1752701466242,-164.772086,0.00019909,2]
[372605671,1752701466251,-164.772086,0.00019909,2]
[372605672,1752701466260,-151.0,0.00019909,2]
[372605673,1752701466270,-600.0,0.00019916,2]
[372605674,1752701466279,-214.3,0.00019916,2]
[372605675,1752701466288,-500.0,0.00019918,2]
[372605676,1752701466298,-500.0,0.00019918,2]
[372605677,1752701466307,-150.0,0.00019918,2]
[372605678,1752701466318,-500.0,0.00019918,2]
[372605679,1752701466327,-200.0,0.00019918,2]
[372605680,1752701466336,-150.0,0.00019918,2]
[372605681,1752701466345,-150.0,0.00019918,2]
[372605682,1752701466354,-500.0,0.00019918,2]
[372605683,1752701466364,-3976.0,0.00019918,2]
[372605684,1752701466373,-611.0,0.00019918,2]
[372605685,1752701466383,-150.0,0.00019918,2]
[372605686,1752701466392,-500.0,0.00019918,2]
[372605687,1752701466401,-419.0,0.00019918,2]
[372605688,1752701466410,-477.0,0.00019918,2]
[372605689,1752701466419,-1743.0,0.00019918,2]
[372605690,1752701466428,-500.0,0.00019918,2]
[372605691,1752701466438,-150.0,0.00019918,2]
[372605692,1752701466447,-500.0,0.00019918,2]
[372605693,1752701466456,-150.0,0.00019918,2]
[372605694,1752701466466,-500.0,0.00019918,2]
[372605695,1752701466477,-500.0,0.00019918,2]
[372605696,1752701466487,-290.0,0.00019918,2]
[372605697,1752701466498,-1126.0,0.00019918,2]
[372605698,1752701466508,-150.0,0.00019918,2]
[372605699,1752701466517,-150.0,0.00019918,2]
[372605700,1752701466527,-200.0,0.00019918,2]
[372605701,1752701466538,-500.0,0.00019918,2]
[372605702,1752701466549,-500.0,0.00019918,2]
[372605703,1752701466558,-150.0,0.00019918,2]
[372605704,1752701466567,-500.0,0.00019918,2]
[372605705,1752701466577,-953.56610904,0.00019919,2]
[372605706,1752701466587,-227.597789,0.00019936,2]
[372605707,1752701466597,-227.597789,0.00019936,2]
[372605708,1752701466606,-193.192268,0.00019936,2]
[372605709,1752701466616,-193.192268,0.00019936,2]
[372605710,1752701466625,-751.931418,0.00019936,2]
[372605711,1752701466634,-751.931418,0.00019936,2]
[372605712,1752701466643,-175.635195,0.00019936,2]
[372605713,1752701466653,-175.635195,0.00019936,2]
[372605714,1752701466663,-2500.0,0.00019939,2]
[372605715,1752701466672,-2500.0,0.00019939,2]
[372605716,1752701466682,-168.0,0.00019942,2]
[372605717,1752701466691,-460.0,0.00019945,2]
[372605718,1752701466701,-460.0,0.00019945,2]
[372605719,1752701466710,-552.51,0.00019945,2]
[372605720,1752701466719,-460.0,0.00019945,2]
[372605721,1752701466728,-460.0,0.00019945,2]
[372605722,1752701466737,-460.0,0.00019945,2]
[372605723,1752701466746,-460.0,0.00019945,2]
[372605724,1752701466756,-151.0,0.00019945,2]
[372605725,1752701466765,-956.06,0.00019945,2]
[372605726,1752701466774,-619.09,0.00019945,2]
[372605727,1752701466783,-460.0,0.00019945,2]
[372605728,1752701466794,-460.0,0.00019945,2]
[372605729,1752701466807,-460.0,0.00019945,2]
[372605730,1752701466816,-553.57,0.00019945,2]
[372605731,1752701466826,-460.0,0.00019945,2]
[372605732,1752701466835,-869.99,0.00019945,2]
[372605733,1752701466845,-460.0,0.00019945,2]
[372605734,1752701466853,-460.0,0.00019945,2]
[372605735,1752701466861,-480.87,0.00019945,2]
[372605736,1752701466870,-460.0,0.00019945,2]
[372605737,1752701466882,-460.0,0.00019945,2]
[372605738,1752701466891,-460.0,0.00019945,2]
[372605739,1752701466901,-283.62,0.00019945,2]
[372605740,1752701466910,-523.56,0.00019945,2]
[372605741,1752701466920,-1254.71,0.00019945,2]
[372605742,1752701466930,-460.0,0.00019945,2]
[372605743,1752701466939,-151.0,0.00019945,2]
[372605744,1752701466948,-695.61,0.00019945,2]
[372605745,1752701466957,-460.0,0.00019945,2]
[372605746,1752701466967,-542.27,0.00019945,2]
[372605747,1752701466976,-460.0,0.00019945,2]
[372605748,1752701466986,-151.0,0.00019945,2]
[372605749,1752701466996,-460.0,0.00019945,2]
[372605750,1752701467005,-460.0,0.00019945,2]
[372605751,1752701467015,-460.0,0.00019945,2]
[372605752,1752701467024,-460.0,0.00019945,2]
[372605753,1752701467034,-555.72,0.00019945,2]
[372605754,1752701467044,-460.0,0.00019945,2]
[372605755,1752701467053,-460.0,0.00019945,2]
[372605756,1752701467063,-460.0,0.00019945,2]
[372605757,1752701467072,-677.33,0.00019945,2]
[372605758,1752701467082,-151.0,0.00019945,2]
[372605759,1752701467091,-460.0,0.00019945,2]
[372605760,1752701467100,-460.0,0.00019945,2]
[372605761,1752701467110,-460.0,0.00019945,2]
[372605762,1752701467119,-734.71,0.00019945,2]
[372605763,1752701467129,-460.0,0.00019945,2]
[372605764,1752701467138,-2620.926489,0.00019945,2]
[372605765,1752701467147,-522.92,0.00019945,2]
[372605766,1752701467158,-2620.926489,0.00019945,2]
[372605767,1752701467168,-460.0,0.00019945,2]
[372605768,1752701467177,-460.0,0.00019945,2]
[372605769,1752701467187,-460.0,0.00019945,2]
[372605770,1752701467197,-460.0,0.00019945,2]
[372605771,1752701467206,-603.42,0.00019945,2]
[372605772,1752701467215,-151.0,0.00019945,2]
[372605773,1752701467225,-460.0,0.00019945,2]
[372605774,1752701467234,-460.0,0.00019945,2]
[372605775,1752701467244,-460.0,0.00019945,2]
[372605776,1752701467253,-562.34351095,0.00019945,2]
[372605777,1752701467263,-460.0,0.00019945,2]
[372605778,1752701467272,-460.0,0.00019945,2]
[372605779,1752701467281,-509.3,0.00019945,2]
[372605780,1752701467292,-460.0,0.00019945,2]
[372605781,1752701467301,-460.0,0.00019945,2]
[372605782,1752701467311,-460.0,0.00019945,2]
[372605783,1752701467320,-202.393792,0.00019945,2]
[372605784,1752701467329,-254.228033,0.00019945,2]
[372605785,1752701467339,-460.0,0.00019945,2]
[372605786,1752701467348,-460.0,0.00019945,2]
[372605787,1752701467357,-460.0,0.00019945,2]
[372605788,1752701467366,-460.0,0.00019945,2]
[372605789,1752701467375,-460.0,0.00019945,2]
[372605790,1752701467384,-460.0,0.00019945,2]
[372605791,1752701467394,-460.0,0.00019945,2]
[372605792,1752701467403,-1304.536516,0.00019945,2]
[372605793,1752701467412,-460.0,0.00019945,2]
[372605794,1752701467422,-460.0,0.00019945,2]
[372605795,1752701467431,-1304.536516,0.00019945,2]
[372605796,1752701467440,-460.0,0.00019945,2]
[372605797,1752701467449,-576.65,0.00019945,2]
[372605798,1752701467458,-909.2,0.00019945,2]
[372605799,1752701467468,-460.0,0.00019945,2]
[372605800,1752701467477,-975.0,0.00019945,2]
[372605801,1752701467486,-472.73,0.00019945,2]
[372605802,1752701467496,-460.0,0.00019945,2]
[372605803,1752701467505,-460.0,0.00019945,2]
[372605804,1752701467514,-464.94,0.00019945,2]
[372605805,1752701467524,-460.0,0.00019945,2]
[372605806,1752701467534,-805.84,0.00019945,2]
[372605807,1752701467544,-500.0,0.00019945,2]
[372605808,1752701467553,-460.0,0.00019945,2]
[372605809,1752701467563,-460.0,0.00019945,2]
[372605810,1752701467572,-460.0,0.00019945,2]
[372605811,1752701467581,-460.0,0.00019945,2]
[372605812,1752701467591,-460.0,0.00019945,2]
[372605813,1752701467600,-151.0,0.00019945,2]
[372605814,1752701467609,-460.0,0.00019945,2]
[372605815,1752701467618,-1071.65,0.00019945,2]
[372605816,1752701467627,-460.0,0.00019945,2]
[372605817,1752701467636,-460.0,0.00019945,2]
[372605818,1752701467646,-460.0,0.00019945,2]
[372605819,1752701467655,-1312.875295,0.00019945,2]
[372605820,1752701467665,-1312.875295,0.00019945,2]
[372605821,1752701467675,-1312.875295,0.00019945,2]
[372605822,1752701467685,-1312.875295,0.00019945,2]
[372605823,1752701467695,-532.28762557,0.00019945,2]
[372605824,1752701467704,-460.0,0.00019945,2]
[372605825,1752701467714,-460.0,0.00019945,2]
[372605826,1752701467723,-460.0,0.00019945,2]
[372605827,1752701467732,-460.0,0.00019945,2]
[372605828,1752701467741,-460.0,0.00019945,2]
[372605829,1752701467750,-1371.3,0.00019945,2]
[372605830,1752701467759,-460.0,0.00019945,2]
[372605831,1752701467769,-460.0,0.00019945,2]
[372605832,1752701467779,-877.73,0.00019945,2]
[372605833,1752701467789,-691.31,0.00019945,2]
[372605834,1752701467799,-460.0,0.00019945,2]
[372605835,1752701467810,-460.0,0.00019945,2]
[372605836,1752701467820,-460.0,0.00019945,2]
[372605837,1752701467830,-460.0,0.00019945,2]
[372605838,1752701467840,-460.0,0.00019945,2]
[372605839,1752701467849,-1011.19,0.00019945,2]
[372605840,1752701467859,-1577.83,0.00019945,2]
[372605841,1752701467868,-460.0,0.00019945,2]
[372605842,1752701467878,-482.25,0.00019945,2]
[372605843,1752701467890,-460.0,0.00019945,2]
[372605844,1752701467900,-460.0,0.00019945,2]
[372605845,1752701467910,-712.81,0.00019945,2]
[372605846,1752701467919,-460.0,0.00019945,2]
[372605847,1752701467929,-460.0,0.00019945,2]
[372605848,1752701467939,-460.0,0.00019945,2]
[372605849,1752701467948,-962.45,0.00019945,2]
[372605850,1752701467958,-460.0,0.00019945,2]
[372605851,1752701467967,-930.39,0.00019945,2]
[372605852,1752701467978,-460.0,0.00019945,2]
[372605853,1752701467987,-460.0,0.00019945,2]
[372605854,1752701467997,-460.0,0.00019945,2]
[372605855,1752701468006,-638.8,0.00019945,2]
[372605856,1752701468016,-460.0,0.00019945,2]
[372605857,1752701468026,-546.40827204,0.00019945,2]
[372605858,1752701468035,-1840.84,0.00019945,2]
[372605859,1752701468046,-460.0,0.00019945,2]
[372605860,1752701468058,-500.0,0.00019945,5]
[372605861,1752701468067,-2532.14,0.00019945,2]
[372605862,1752701468077,-1111.69,0.00019945,2]
[372605863,1752701468086,-546.99,0.00019945,2]
[372605864,1752701468095,-460.0,0.00019945,2]
[372605865,1752701468105,-460.0,0.00019945,2]
[372605866,1752701468114,-460.0,0.00019945,2]
[372605867,1752701468124,-460.0,0.00019945,2]
[372605868,1752701468133,-460.0,0.00019945,2]
[372605869,1752701468142,-460.0,0.00019945,2]
[372605870,1752701468151,-636.55,0.00019945,2]
[372605871,1752701468160,-1030.03,0.00019945,2]
[372605872,1752701468170,-212.464985,0.00019945,2]
[372605873,1752701468179,-212.464985,0.00019945,2]
[372605874,1752701468189,-621.62,0.00019945,2]
[372605875,1752701468199,-460.0,0.00019945,2]
[372605876,1752701468208,-460.0,0.00019945,2]
[372605877,1752701468218,-460.0,0.00019945,2]
[372605878,1752701468227,-212.464985,0.00019945,2]
[372605879,1752701468236,-212.464985,0.00019945,2]
[372605880,1752701468246,-151.0,0.00019945,2]
[372605881,1752701468255,-151.0,0.00019945,2]
[372605882,1752701468264,-537.57,0.00019945,2]
[372605883,1752701468273,-460.0,0.00019945,2]
[372605884,1752701468282,-460.0,0.00019945,2]
[372605885,1752701468292,-1210.51,0.00019945,2]
[372605886,1752701468302,-460.0,0.00019945,2]
[372605887,1752701468311,-460.0,0.00019945,2]
[372605888,1752701468320,-572.38,0.00019945,2]
[372605889,1752701468330,-1297.25,0.00019945,2]
[372605890,1752701468339,-460.0,0.00019945,2]
[372605891,1752701468348,-460.0,0.00019945,2]
[372605892,1752701468357,-460.0,0.00019945,2]
[372605893,1752701468366,-460.0,0.00019945,2]
[372605894,1752701468375,-835.9,0.00019945,2]
[372605895,1752701468384,-460.0,0.00019945,2]
[372605896,1752701468393,-460.0,0.00019945,2]